Cogmind - Beta 15 @@@ ROGUE MODE // 2025.05.09 @ 14:28:36 Player: naththebg Result: Destroyed by as-15921 with Assembled Rifle Performance ------------- Evolutions (1) 500 Regions Visited (3) 600 Robots Destroyed (39) 195 Value Destroyed (635) 635 Prototype IDs (2) 40 Alien Tech Used (0) 0 Bonus (-8) -8 TOTAL SCORE: 1962 Bonus ------- Friendly Fire -8 Cogmind --------- Core Integrity 0/400 Matter 259/300 Energy 280/280 System Corruption 7% Temperature Cool (21) Movement Hovering (120) Ox1 Location -9/Mines Parts ------- > --- POWER (1) -------- Heavy Ion Engine > --- PROPULSION (3) --- Hover Unit > --- UTILITY (3) ------ Heat Sink > --- WEAPON (2) ------- Spread Laser > --- INVENTORY (5) ---- Ion Engine Armored Wheel Spread Laser Spread Laser Hammer Peak State ------------ > --- POWER ------------ Heavy Ion Engine > --- PROPULSION ------- Armored Wheel Armored Wheel Armored Wheel > --- UTILITY ---------- Heat Sink Medium Storage Unit Hacking Suite > --- WEAPON ----------- Spread Laser Spread Laser > --- INVENTORY -------- Ion Engine Armored Wheel Hover Unit Hover Unit Hover Unit Spread Laser Spread Laser Spread Laser Spread Laser Hammer [Rating: 19] Favorites ----------- Power Light Ion Engine Engine Light Ion Engine Propulsion Aluminum Leg Treads Light Treads Leg Aluminum Leg Wheel Armored Wheel Hover Unit Hover Unit Utility Medium Storage Unit Device Heat Sink Storage Medium Storage Unit Hackware Hacking Suite Weapon Spread Laser Energy Gun Spread Laser Ballistic Gun Light Assault Rifle Impact Weapon Hammer Slashing Weapon Mining Claw Build | -11 -10 -9 -9 ------- Run | Yrd Mat Mat Min Slots Evolved 2 | . . 2 . Power . | . . . . Propulsion 1 | . . 1 . Utility 1 | . . 1 . Weapon . | . . . . Parts Attached 36 | 6 8 18 4 Power 5 | 1 1 3 . Engine 5 | 1 1 3 . Core . | . . . . Reactor . | . . . . Propulsion 14 | 2 2 7 3 Treads 3 | . 2 1 . Leg 2 | 2 . . . Wheel 5 | . . 5 . Hover 4 | . . 1 3 Flight . | . . . . Utility 7 | 1 3 3 . Device 3 | . 2 1 . Storage 3 | 1 1 1 . Processor . | . . . . Hackware 1 | . . 1 . Protection . | . . . . Artifact . | . . . . Weapon 10 | 2 2 5 1 Energy Gun 7 | 1 . 5 1 Energy Cannon . | . . . . Ballistic Gun 1 | 1 . . . Ballistic Cannon . | . . . . Launcher . | . . . . Special Weapon . | . . . . Impact Weapon 1 | . 1 . . Slashing Weapon 1 | . 1 . . Piercing Weapon . | . . . . Special Melee Weapon . | . . . . Unidentified Prototypes 2 | . . 2 . Parts Lost 17 | . 4 8 5 Power 2 | . 1 1 . Propulsion 9 | . 2 4 3 Utility 3 | . 1 1 1 Weapon 3 | . . 2 1 Highest Loss Streak 6 | . 3 6 5 To Critical Strikes . | . . . . Average Backups 8 | 4 8 9 9 Power . | . . . 1 Propulsion 3 | 2 3 2 3 Utility . | . . . . Weapon 4 | . 3 5 4 Tool/Special . | . . . . Unused Backups 10 | . . 5 5 Power 2 | . . 1 1 Propulsion 2 | . . 1 1 Utility 1 | . . 1 . Weapon 5 | . . 2 3 Tool/Special . | . . . . Average Slot Usage (%) 89 | . 91 87 90 Engine 11 | . 12 10 11 Treads 6 | . 4 11 . Leg 12 | . 22 . . Wheel 8 | . . 15 29 Device 7 | . 7 7 11 Storage 12 | . 14 11 10 Hackware 4 | . . 9 8 Energy Gun 10 | . 6 14 19 Ballistic Gun 1 | . 2 . . Impact Weapon 7 | . 11 3 . Slashing Weapon 5 | . 7 3 . Peak Build Rating 19 | 6 8 19 19 Average Rating 9 | 4 6 13 17 On Entrance 8 | . 6 8 19 Naked Turns . | . . . . Heaviest Build 25 | 11 18 25 25 Greatest Support 40 | 20 40 40 36 Greatest Overweight (x) 2 | . . 2 1 Average Overweight (x) . | . . . . Largest Inventory Capacity 10 | 8 10 10 10 Average Capacity 9 | 6 9 10 9 Most Carried 10 | 6 9 10 10 Average Carried 8 | 4 8 9 9 Final Capacity 10 | 8 10 10 5 Final Carried 10 | 6 9 10 5 Class Distribution -------------------- 100% | Mutant Dominant Class ---------------- Mutant | -10/Materials Mutant | -9/Materials Mutant | -9/Mines Resources | -11 -10 -9 -9 ----------- Run | Yrd Mat Mat Min Matter Collected 521 | 194 129 198 . Remotely 65 | . 10 55 . Salvage Created 1139 | . 533 560 46 Parts 56 | . 11 42 3 Haulers Intercepted 4 | . 1 3 . Recyclers Shooed 2 | . 1 1 . Parts Field Recycled . | . . . . Retrieved Matter . | . . . . Parts Self-Destructed . | . . . . Prevented . | . . . . Kills | -11 -10 -9 -9 ------- Run | Yrd Mat Mat Min Combat Hostiles Destroyed 24 | . 9 11 4 Melee 6 | . 4 2 . Guns 12 | . . 8 4 Classes Destroyed 9 | . 6 2 1 Worker 3 | . 1 2 . Hauler 4 | . 1 3 . Recycler 6 | . 3 3 . Operator 1 | . 1 . . Watcher 2 | . . 2 . Swarmer 13 | . 3 7 3 Grunt 6 | . 6 . . Sentry 4 | . . 4 . Assembled 1 | . . . 1 Best Kill Streak 5 | . 5 4 4 Combat Bots Only 4 | . 2 4 3 Max Kills in Single Turn 2 | . 1 2 2 Gunslinging 1 | . . . 1 Exploded . | . . . . Melee 1 | . 1 1 . Uniques/NPCs Destroyed . | . . . . Combat | -11 -10 -9 -9 -------- Run | Yrd Mat Mat Min Hostile Shots Fired 277 | . 84 119 74 Missed 66 | . 19 31 16 Hits 211 | . 65 88 58 Melee 11 | . . . 11 Projectile 200 | . 65 88 47 Critical Strikes 2 | . . . 2 Part Disruptions 1 | . . . 1 Damage Taken 2490 | . 687 970 833 Core 616 | . 206 219 191 Absorbed by Shields . | . . . . Core Remaining (%) 58 | 100 17 . . Volleys Fired 44 | . 5 35 4 Largest 2 | . 2 2 2 Hottest 130 | . 70 130 130 Shots Fired 84 | . 10 65 9 Gun 84 | . 10 65 9 Cannon . | . . . . Launcher . | . . . . Special . | . . . . Kinetic 5 | . 5 . . Thermal 79 | . 5 65 9 Explosive . | . . . . Electromagnetic . | . . . . Robot Hit Streak 20 | . 3 20 15 Robot Miss Streak 9 | . 2 9 7 Penetration Max . | . . . . Secondary Targets 2 | . . 1 1 Max Gunslinging Chain 1 | . . 1 1 Shots Hit Robots 127 | . 55 64 8 Core Hits 102 | . 10 78 14 Critical Kills 2 | . 2 . . Critical Parts Destroyed 5 | . 5 . . Critical Strikes 7 | . 7 . . Smash 7 | . 7 . . Melee Attacks 75 | . 68 7 . Impact 70 | . 64 6 . Slashing 5 | . 4 1 . Piercing . | . . . . Sneak Attacks 7 | . 7 . . Combat Hostiles . | . . . . Follow-up Attacks 2 | . 2 . . Damage Inflicted 2517 | . 1474 941 102 Guns 968 | . 72 794 102 Cannons . | . . . . Explosions . | . . . . Melee 1538 | . 1399 139 . Ramming 11 | . 3 8 . Kinetic 33 | . 33 . . Thermal 935 | . 39 794 102 Explosive . | . . . . Electromagnetic . | . . . . Impact 1489 | . 1350 139 . Slashing 49 | . 49 . . Piercing . | . . . . Highest Corruption 7 | . . 2 7 Average Corruption 3 | . . 2 3 Corruption Purged . | . . . . Corruption Blocked . | . . . . Effects 5 | . . . 5 Message Errors 1 | . . . 1 Matter Fused 2 | . . . 2 Parts Rejected 1 | . . . 1 Misfires 1 | . . . 1 Overload Shots . | . . . . Overflow Damage 274 | . 261 13 . Projectiles . | . . . . Explosions . | . . . . Melee 274 | . 261 13 . Knockbacks 5 | . 5 . . Impact 5 | . 5 . . Kinetic . | . . . . Secondary . | . . . . Self-Inflicted Damage 2 | . . 2 . Shots . | . . . . Rammed 5 | . . 5 . Targets Rammed 7 | . 1 6 . Kicked 1 | . 1 . . Crushed 1 | . . 1 . Highest Temperature 319 | . 70 319 106 Average Temperature 93 | . 28 105 41 Received Heat Transfer 716 | . 273 183 260 Effects 1 | . . 1 . Shutdowns 1 | . . 1 . Siege Activations . | . . . . Martial Activations . | . . . . Shielding Activations . | . . . . Robots Disrupted . | . . . . Combat Hostiles . | . . . . Robots Corrupted 9 | . 8 1 . Combat Hostiles 6 | . 5 1 . Parts Fried 10 | . 8 2 . Impact Corruptions 15 | . 13 2 . Robots Melted . | . . . . Combat Hostiles . | . . . . Parts Melted 1 | . . 1 . Heat Transferred 1231 | . 111 1000 120 Parts Sabotaged . | . . . . Parts Stolen . | . . . . Parts Stripped . | . . . . Power Chain Reactions . | . . . . Alert | -11 -10 -9 -9 ------- Run | Yrd Mat Mat Min Maximum Alert Level . | . . . . Low Security (%) 100 | 100 100 100 100 Level 1 . | . . . . Level 2 . | . . . . Level 3 . | . . . . Level 4 . | . . . . Level 5 . | . . . . High Security . | . . . . Max Security . | . . . . Peak Influence 188 | . 89 188 127 Initial 57 | . . 13 57 Average 61 | . 29 106 97 Influence Increases 795 | . 296 429 70 Destroy 0b10 Robot/C 460 | . 180 220 60 Destroy 0b10 Robot/NC 80 | . 30 50 . Destroy Leader 112 | . 32 70 10 Successful Hack 23 | . 9 14 . Lose Combat Pursuer 120 | . 45 75 . Influence Decreases 758 | . 265 313 180 Entered New Map 108 | . . 18 90 Time Decay 480 | . 225 215 40 Lost Part 170 | . 40 80 50 Squads Dispatched 2 | . 1 1 . Investigation 1 | . . 1 . Extermination . | . . . . Reinforcement 1 | . 1 . . Assault . | . . . . Garrison . | . . . . Intercept . | . . . . Searches Triggered . | . . . . Construction Impeded . | . . . . Haulers Reinforced . | . . . . Active Scanning Responses . | . . . . Cargo Convoy Interrupts . | . . . . Stealth | -11 -10 -9 -9 --------- Run | Yrd Mat Mat Min Distress Signals 2 | . 1 1 . Communications Jammed . | . . . . Distress Signals . | . . . . Times Spotted 62 | . 22 27 13 Peak Tracking Total 11 | . 3 8 11 Tactical Retreats 6 | . 2 3 1 Traps | -11 -10 -9 -9 ------- Run | Yrd Mat Mat Min Traps Triggered 1 | . . 1 . Indirectly . | . . . . Trap Hack Attempts . | . . . . Triggered . | . . . . Disarmed . | . . . . Reprogrammed . | . . . . Reused . | . . . . Traps Extracted . | . . . . Installed . | . . . . Triggered . | . . . . Machines | -11 -10 -9 -9 ---------- Run | Yrd Mat Mat Min Machines Disabled . | . . . . Max in Single Turn . | . . . . Machines Repaired . | . . . . Machines Dismantled . | . . . . Machines Sabotaged . | . . . . Overloaded Fab Kills . | . . . . Hacking | -11 -10 -9 -9 --------- Run | Yrd Mat Mat Min Machines Accessed 8 | . 6 2 . Terminals 6 | . 5 1 . Fabricators . | . . . . Repair Stations . | . . . . Recycling Units 2 | . 1 1 . Scanalyzers . | . . . . Garrison Access . | . . . . Total Hacks 26 | . 23 3 . Successful 11 | . 8 3 . Failed 15 | . 15 . . Catastrophic . | . . . . Database Lockouts . | . . . . Manual 13 | . 11 2 . Terminals 21 | . 19 2 . Fabricators . | . . . . Repair Stations . | . . . . Recycling Units 5 | . 4 1 . Scanalyzers . | . . . . Garrison Access . | . . . . Terminal Hacks 4 | . 4 . . Record 1 | . 1 . . Alert Level 1 | . 1 . . Locate Traps 2 | . 2 . . Fabricator Hacks . | . . . . Repair Station Hacks . | . . . . Recycling Unit Hacks 2 | . 1 1 . Retrieve Components 2 | . 1 1 . Scanalyzer . | . . . . Garrison Access Hacks . | . . . . Unauthorized Hacks 5 | . 3 2 . Terminals 5 | . 3 2 . Botnet 3 | . 2 1 . Operators 2 | . 1 1 . Fabricators . | . . . . Repair Stations . | . . . . Recycling Units . | . . . . Scanalyzers . | . . . . Garrison Access . | . . . . Data Cores Recovered . | . . . . Used . | . . . . Hacking Detections 6 | . 5 1 . Full Trace Events . | . . . . Feedback Events . | . . . . Feedback Blocked . | . . . . Robot Schematics Acquired . | . . . . Robots Built . | . . . . Authchips . | . . . . Time . | . . . . Total Robot Build Rating . | . . . . Part Schematics Acquired . | . . . . Parts Built . | . . . . Authchips . | . . . . Time . | . . . . Total Part Build Rating . | . . . . Parts Repaired . | . . . . Time . | . . . . Parts Recycled . | . . . . Recycled Matter . | . . . . Retrieved Matter . | . . . . Retrieved Components 19 | . 10 9 . Parts Scanalyzed . | . . . . Part Schematics Acquired . | . . . . Parts Damaged . | . . . . Bothacking | -11 -10 -9 -9 ------------ Run | Yrd Mat Mat Min Used RIF Installer . | . . . . Robots Hacked . | . . . . Non-combat . | . . . . Combat . | . . . . Robot Hacks Applied . | . . . . Relay Couplers Released . | . . . . Fabnet Peak Effective % . | . . . . Robots Rewired . | . . . . Allies Hacked . | . . . . Hacks Repelled . | . . . . Allies | -11 -10 -9 -9 -------- Run | Yrd Mat Mat Min Total Allies . | . . . . Largest Group . | . . . . Highest-Rated Group . | . . . . Highest-Rated Ally . | . . . . Total Orders . | . . . . Ally Attacks . | . . . . Total Damage . | . . . . Kills . | . . . . Allies Corrupted . | . . . . Allies Melted . | . . . . Intel | -11 -10 -9 -9 ------- Run | Yrd Mat Mat Min Active Infowar (turns) . | . . . . Robot Analysis Total . | . . . . Derelict Logs Recovered 1 | . . . 1 Drone Launches . | . . . . Drone Recoveries . | . . . . Exploration | -11 -10 -9 -9 ------------- Run | Yrd Mat Mat Min Turns Passed 1391 | 56 729 510 96 Spaces Moved 748 | 41 375 250 82 Core 11 | 11 . . . Treads 136 | . 61 75 . Legs 344 | 30 314 . . Wheels 249 | . . 174 75 Hover 8 | . . 1 7 Flight . | . . . . Fastest Speed 50 | 50 120 85 56 Average Speed 116 | 101 126 113 89 Slowest Speed 180 | 120 160 180 120 Overloaded Moves . | . . . . Propulsion Burnouts . | . . . . Robots Hopped . | . . . . Potential Cave-ins . | . . . . Cave-ins Triggered . | . . . . Exploration Rate (%) 30 | 3 62 27 30 Regions Visited 3 Branch Regions 1 Pre-discovered Areas . | . . . . Known Exits Taken . | . . . . Unknown Exits Taken 3 | 1 1 1 . Scrap Searched . | . . . . Spaces Dug . | . . . . Terrain Destroyed . | . . . . Melee . | . . . . Projectile . | . . . . AOE . | . . . . Terrain Rammed . | . . . . Walls Destroyed . | . . . . Machines Disabled . | . . . . Actions | -11 -10 -9 -9 --------- Run | Yrd Mat Mat Min Total 1050 | 53 504 396 97 Wait 98 | . 42 53 3 Move 745 | 40 374 249 82 Hop . | . . . . Pick Up 28 | 7 8 13 . Fast Attach 15 | 5 1 8 1 Attach 12 | 1 4 5 2 Detach . | . . . . Swap 13 | . 3 8 2 Drop 17 | . 1 13 3 Fire 44 | . 5 35 4 Melee 71 | . 65 6 . Ram 1 | . . 1 . Kick 1 | . 1 . . Crush 5 | . . 5 . Escape Stasis . | . . . . Rewire . | . . . . Trap . | . . . . Miscellaneous . | . . . . Route ------- -11/Scrapyard -10/Materials (discovered 3 exits: *Mat x2 / [*Min]) -9/Materials -9/Mines History --------- Turn | Location | Event 9 | -11/Scrapyard | Discovered new exit (range 14) 57 | -11/Scrapyard | Entered Materials 305 | -10/Materials | Build established: Mutant 397 | -10/Materials | Discovered new exit (range 6) 435 | -10/Materials | Discovered new exit (range 16) 484 | -10/Materials | Discovered new exit (range 9) 629 | -10/Materials | Core integrity fell below 50% 669 | -10/Materials | Core integrity fell below 20% 689 | -10/Materials | Lost 3 parts (2n1u) 786 | -10/Materials | Entered another Materials area 786 | -9/Materials | Evolved 2 slots: Propulsion x1, Utility x1 994 | -9/Materials | Lost 6 parts (1p3n1u1w) 1012 | -9/Materials | Discovered new exit (range 8) 1035 | -9/Materials | Core integrity fell below 50% 1296 | -9/Materials | Entered Mines 1309 | -9/Mines | Learned location of 1 exit from Materials 1335 | -9/Mines | Assembled infested the area 1340 | -9/Mines | Assisted by a Guerilla fighting off Assembled 1377 | -9/Mines | Core integrity fell below 20% 1392 | -9/Mines | Destroyed by as-15921 with Assembled Rifle Last Messages --------------- 01341_ System corrupted: Spread Laser misfires. 01355_ 3Q-DHB(h): "I'll hold them off! Go on ahead or try to find another way!" 01356_ 3Q-DHB(h) destroyed. 01357_ System corrupted: Arm. Wheel rejected. 01357_ Acquired Arm. Wheel. 01361_ as-64656 destroyed. 01364_ Spread Laser severed. 01365_ Hacking Suite destroyed. 01365_ System corrupted by crushing effect (+3). 01369_ Spread Laser destroyed. 01372_ S&TP0DOSZT|BK#YFXA:HHYJZH 01374_ Arm. Wheel destroyed. 01374_ System corrupted by crushing effect (+2). 01382_ Knocked back. 01386_ Dropped Arm. Wheel. 01387_ Hover Unit destroyed. 01387_ Dropped Med. Storage Unit. 01390_ System corrupted: Matter fused (-8). 01390_ Hover Unit destroyed. Map ----- +----------------------------------------------------+ | ??????????????????????????????????? | | ??????????????????????????????????? | | ??????????????????????????????????? | | ??????????????????????????????????? | | ??????????????????????????????????? | | ??????????????????????????????????? | | ??????????????????????????????????? | | ????????#?????????????????????????? | | ??????### ????????????????????????? | | ?????## ????????????????????????? | | ??? ?# ???####?????????????????? | | ???? # #?## ##????????????????? | | ????#" ## #??????####??????? | | ?????# " #?????## ##?????? | | ??????# #?????# #?????? | | ???????# #?????# #?????? | | ??###???# #?????# #?????? | | ?## #???# *= ##?????# ##????? | | ?# ##??#%! ####???# ==###??? | | ?# ####=] ##??# ![ ##?? | | ??# % #### a #?? | | ???# [ ##aaa #?? | | ???## ##### aa a a ##?? | | ????# ##??## #??? | | ????## ##??#### a #??? | | ?????## ###???## @ #??? | | ?????## ##???# ## #??? | | ????## #???## #### ##??? | | ??### #????# #??## ###???? | | ### ##????# #???####?????? | | ##?????# #????????????? | | ##??????# ????????????? | | ### ##???????# ????????????? | | #??## #????????## ???????????? | | ????# #?????????# ???????????? | | ????# ##?????????? ??????????? | | ????# #??????????? ???????????? | | ????# #??????????? ????????????? | | ????# #???###???????????????????? | | ????# ##?# ##??????????????????? | | ????# ## #??????????????????? | | ????## #???????????????????? | | ?????## ##???????????????????? | | ??????## ##???????????????????? | | ???????## ###?????????????????? | | ???###?## """ ##????????????????? | | ???# ## """ #????????????????? | | ???# """ #????????????????? | | #??# #????????????????? | | ##?## # #????????????????? | +----------------------------------------------------+ Best States ------------- Heat Dissipation 38 Energy Generation 14 Energy Capacity 280 Matter Stores 300 Matter Capacity 300 Sight Range 16 Terrain Scan Density 10 Evasion (%) 55 Recoil Reduction 2 Offensive Hacking 10 Item Schematics ----------------- None Robot Schematics ------------------ None Fabricated ------------ Nothing Repaired ---------- Nothing Alien Tech Used ----------------- None Achievements -------------- None Challenges ------------ None Game ------ Seed LatentHybridFlakker Manual? 0 Play Time 00:18:12 Cumulative 231.2 hours Start 2025.05.09 @ 14:11:19 End 2025.05.09 @ 14:28:36 Sessions 1 Manual Loads 0 Difficulty Rogue Special Mode None Game No. 115 Rogue 115 Adventurer 0 Explorer 0 Win Type - Total 4 Types 4/0/0/0/0/0/0/0/0/0 Lore% 71 Gallery% 73 Achievement% 62 Wizard Run 0 Options --------- Layout 1 ASCII 0 Keyboard 0 Movement Mouse Keybinds 0 Fullscreen 1 Font 24/Smallcaps Map View 50x35 Zoom Use 0% Tactical HUD 1 Map Filters NONE Filters NONE Steam 1 RUN: a69d1cee-2cab-4233-9c01-5d395c02d58b